bitfinex/quotes_BTCUSD_20250608
["timestamp","ask_amount","ask_price","bid_price","bid_amount"]
[1749381496947,0.05509381,105580.0,105570.0,1.16870024]
[1749381497146,0.05509381,105580.0,105570.0,1.16870032]
[1749381497474,0.05509381,105580.0,105570.0,1.16208796]
[1749381497876,0.05509381,105580.0,105570.0,1.16870013]
[1749381498542,0.05509381,105580.0,105570.0,0.79410026]
[1749381498753,0.06456476,105580.0,105570.0,1.16870026]
[1749381498969,0.06456476,105580.0,105570.0,1.16869952]
[1749381499176,0.06456476,105580.0,105570.0,1.16869954]
[1749381499378,0.05509381,105580.0,105570.0,1.16869954]
[1749381499785,0.05509381,105580.0,105570.0,0.79409954]
[1749381499966,0.05509381,105580.0,105570.0,1.16869957]
[1749381500190,0.05509381,105580.0,105570.0,1.19690848]
[1749381500727,0.05509381,105580.0,105570.0,1.16869957]
[1749381501234,0.05509381,105580.0,105570.0,1.19690773]
[1749381502328,0.05509381,105580.0,105570.0,1.19690724]
[1749381502741,0.05509381,105580.0,105570.0,1.19029612]
[1749381503683,0.05509381,105580.0,105570.0,1.19690723]
[1749381503915,0.05509381,105580.0,105570.0,1.19690715]
[1749381504126,0.05509381,105580.0,105570.0,1.19029612]
[1749381504530,0.05509381,105580.0,105570.0,1.19690715]
[1749381505379,0.04562304,105580.0,105570.0,1.19690715]
[1749381505552,0.05509381,105580.0,105570.0,1.19690715]
[1749381506303,0.05509381,105580.0,105570.0,1.19029612]
[1749381506605,0.05509381,105580.0,105570.0,1.19690715]
[1749381507410,0.05509381,105580.0,105570.0,1.19690708]
[1749381508260,0.05509381,105580.0,105570.0,1.19690754]
[1749381508514,0.05509381,105580.0,105570.0,1.19690764]
[1749381509001,0.05509381,105580.0,105570.0,1.19690743]
[1749381509453,0.05509381,105580.0,105570.0,1.19690732]
[1749381509962,0.05509381,105580.0,105570.0,1.19690735]
[1749381510184,0.05509381,105580.0,105570.0,1.19029612]
[1749381510397,0.05509381,105580.0,105570.0,1.19690733]
[1749381510781,0.05509381,105580.0,105570.0,1.19690752]
[1749381511003,0.05509381,105580.0,105570.0,1.1969075]
[1749381511244,0.04562304,105580.0,105570.0,1.19029612]
[1749381511502,0.05509381,105580.0,105570.0,1.19690768]
[1749381511727,0.05509381,105580.0,105570.0,1.19690808]
[1749381511934,0.05509381,105580.0,105570.0,1.1969082]
[1749381512152,0.05509381,105580.0,105570.0,1.19690824]
[1749381512829,0.04562304,105580.0,105570.0,1.1969084]
[1749381513072,0.05509381,105580.0,105570.0,1.1969084]
[1749381513509,0.04562304,105580.0,105570.0,1.1969084]
[1749381514189,0.04562304,105580.0,105570.0,1.19690845]
[1749381514772,0.04562304,105580.0,105570.0,1.2250549]
[1749381515188,0.04562304,105580.0,105570.0,1.22505472]
[1749381515639,0.04562304,105580.0,105570.0,1.2250551]
[1749381516357,0.04562304,105580.0,105570.0,1.21844317]
[1749381516577,0.04562304,105580.0,105570.0,1.2250551]
[1749381516809,0.04562304,105580.0,105570.0,1.21844317]
[1749381517457,0.04562304,105580.0,105570.0,1.2250551]
[1749381518594,0.04562304,105580.0,105570.0,1.22505557]
[1749381519010,0.04562304,105580.0,105570.0,1.21844317]
[1749381519240,0.04562304,105580.0,105570.0,1.22505557]
[1749381520213,0.04562304,105580.0,105570.0,1.21844317]
[1749381520433,0.04562304,105580.0,105570.0,1.22505579]
[1749381520638,0.04562304,105580.0,105570.0,1.22505578]
[1749381521630,0.04562304,105580.0,105570.0,1.22505611]
[1749381522030,0.04562304,105580.0,105570.0,1.2250563]
[1749381522229,0.04562304,105580.0,105570.0,1.21844317]
[1749381522594,0.04562304,105580.0,105570.0,1.22505634]
[1749381523585,0.04562304,105580.0,105570.0,1.21844317]
[1749381523815,0.04562304,105580.0,105570.0,1.22505616]
[1749381523981,0.04562304,105580.0,105570.0,1.21844317]
[1749381524239,0.04562304,105580.0,105570.0,1.22505616]
[1749381525201,0.04562304,105580.0,105570.0,1.22505601]
[1749381525618,0.04562304,105580.0,105570.0,1.22505606]
[1749381525792,0.04562304,105580.0,105570.0,1.21844317]
[1749381525990,0.04562304,105580.0,105570.0,1.22505597]
[1749381527264,0.04562304,105580.0,105570.0,1.22505576]
[1749381527465,0.04562304,105580.0,105570.0,1.22505564]
[1749381528677,0.04562304,105580.0,105570.0,1.21844317]
[1749381528894,0.04562304,105580.0,105570.0,1.2250556]
[1749381529100,0.04562304,105580.0,105570.0,1.22505557]
[1749381529727,0.04562304,105580.0,105570.0,1.21844317]
[1749381529936,0.04562304,105580.0,105570.0,1.22505557]
[1749381530895,0.04562304,105580.0,105570.0,1.21844317]
[1749381531236,0.04562304,105580.0,105570.0,1.22505445]
[1749381532358,0.04562304,105580.0,105570.0,1.21844317]
[1749381532748,0.04562304,105580.0,105570.0,1.22505469]
[1749381532955,0.04562304,105580.0,105570.0,1.22505462]
[1749381534425,0.04562304,105580.0,105570.0,1.21844317]
[1749381534800,0.04562304,105580.0,105570.0,1.22505482]
[1749381535050,0.04562304,105580.0,105570.0,1.22505481]
[1749381536031,0.04562304,105580.0,105570.0,1.22505493]
[1749381536442,0.04562304,105580.0,105570.0,1.21844317]
[1749381536590,0.04562304,105580.0,105570.0,1.22505494]
[1749381536792,0.04562304,105580.0,105570.0,1.22505496]
[1749381537210,0.04562304,105580.0,105570.0,1.21844317]
[1749381537412,0.04562304,105580.0,105570.0,1.22505497]
[1749381537636,0.04562304,105580.0,105570.0,1.21844317]
[1749381538057,0.04562304,105580.0,105570.0,1.22505498]
[1749381538319,0.04562304,105580.0,105570.0,1.21844317]
[1749381538517,0.04562304,105580.0,105570.0,1.22505498]
[1749381538717,0.04562304,105580.0,105570.0,1.2250553]
[1749381540286,0.04562304,105580.0,105570.0,1.22505534]
[1749381540866,0.04562304,105580.0,105570.0,1.22505592]
[1749381541420,0.04562304,105580.0,105570.0,1.22505593]
[1749381541996,0.04562304,105580.0,105570.0,1.21844317]
[1749381542202,0.04562304,105580.0,105570.0,1.22505605]
[1749381542406,0.04562304,105580.0,105570.0,1.21844317]
[1749381542612,0.04562304,105580.0,105570.0,1.2250562]
[1749381542814,0.02262304,105580.0,105570.0,1.22505619]
[1749381543835,0.02262304,105580.0,105570.0,1.22505592]
[1749381544220,0.02262304,105580.0,105570.0,1.22505831]
[1749381545015,0.02262304,105580.0,105570.0,1.21844317]
[1749381545215,0.02262304,105580.0,105570.0,1.22505835]
[1749381545642,0.02262304,105580.0,105570.0,1.21844317]
[1749381545848,0.02262304,105580.0,105570.0,1.22505833]
[1749381547268,0.02262304,105580.0,105570.0,1.22505822]
[1749381547593,0.02262304,105580.0,105570.0,1.21844317]
[1749381547712,0.02262304,105580.0,105570.0,1.2250582]
[1749381547916,0.02262304,105580.0,105570.0,1.22505826]
[1749381548122,0.02262304,105580.0,105570.0,1.22505817]
[1749381548745,0.02262304,105580.0,105570.0,1.22505815]
[1749381549178,0.02262304,105580.0,105570.0,1.21844317]
[1749381549378,0.02262304,105580.0,105570.0,1.22505705]
[1749381549635,0.02262304,105580.0,105570.0,1.21844317]
[1749381549832,0.00762304,105580.0,105570.0,1.22505698]
[1749381550168,0.00762304,105580.0,105570.0,1.21844317]
[1749381550495,0.00762304,105580.0,105570.0,1.22505716]
[1749381550698,0.00762304,105580.0,105570.0,1.22505714]
[1749381550898,0.00762304,105580.0,105570.0,1.21844317]
[1749381551312,0.00762304,105580.0,105570.0,1.22505721]
[1749381551925,0.00762304,105580.0,105570.0,1.21840317]
[1749381552327,0.00762304,105580.0,105570.0,1.22501727]
[1749381553280,0.00762304,105580.0,105570.0,1.21840317]
[1749381553483,0.00762304,105580.0,105570.0,1.22501746]
[1749381553922,0.00762304,105580.0,105570.0,1.22501748]
[1749381554760,0.00762304,105580.0,105570.0,1.21840317]
[1749381554966,0.00762304,105580.0,105570.0,1.22497746]
[1749381555169,0.00762304,105580.0,105570.0,1.22497741]
[1749381555373,0.00762304,105580.0,105570.0,1.22497743]
[1749381556271,0.00762304,105580.0,105570.0,1.22497674]
[1749381556456,0.00762304,105580.0,105570.0,1.21836317]
[1749381556656,0.00762304,105580.0,105570.0,1.22497674]
[1749381556854,0.00762304,105580.0,105570.0,1.2249767]
[1749381557280,0.00762304,105580.0,105570.0,1.22497672]
[1749381558069,0.00762304,105580.0,105570.0,1.21836317]
[1749381558421,0.00762304,105580.0,105570.0,1.22497667]
[1749381558635,0.02656485,105580.0,105570.0,0.92285667]
[1749381558836,0.02656485,105580.0,105570.0,1.15362146]
[1749381558969,0.03603607,105580.0,105570.0,1.17522892]
[1749381559175,0.22546588,105580.0,105570.0,0.28083959]
[1749381559375,0.23493737,105580.0,105570.0,1.12769269]
[1749381559601,0.23493737,105580.0,105570.0,1.13715996]
[1749381559818,0.23493737,105580.0,105570.0,1.13715959]
[1749381560007,0.23493737,105580.0,105570.0,1.13054881]
[1749381560207,0.03603607,105580.0,105570.0,1.13054836]
[1749381560413,0.04550738,105580.0,105570.0,1.14614836]
[1749381560791,0.04550738,105580.0,105570.0,1.15275866]
[1749381561466,0.04550738,105580.0,105570.0,1.15275867]
[1749381561888,0.04550738,105580.0,105570.0,1.15275834]
[1749381562297,0.0360358,105580.0,105570.0,1.16905834]
[1749381562833,0.03603571,105580.0,105570.0,1.16905834]
[1749381563317,0.03603571,105580.0,105570.0,1.16244836]
[1749381563772,0.03603571,105580.0,105570.0,1.16905672]
[1749381563959,0.03603571,105580.0,105570.0,1.16905637]
[1749381564853,0.02656467,105580.0,105570.0,1.16244836]
[1749381565103,0.03603562,105580.0,105570.0,1.16905637]
[1749381565938,0.03603562,105580.0,105570.0,1.16244836]
[1749381566154,0.03603562,105580.0,105570.0,1.16903116]
[1749381566897,0.03603562,105580.0,105570.0,1.1690306]
[1749381567463,0.03603562,105580.0,105570.0,1.16242354]
[1749381567658,0.03603562,105580.0,105570.0,1.1690306]
[1749381567859,0.03603562,105580.0,105570.0,1.16242354]
[1749381568067,0.04550675,105580.0,105570.0,1.1372506]
[1749381568635,0.03603562,105580.0,105570.0,1.1673506]
[1749381570151,0.04550675,105580.0,105570.0,1.1673506]
[1749381570349,0.03603562,105580.0,105570.0,1.1673506]
[1749381570909,0.03603562,105580.0,105570.0,1.16735033]
[1749381571137,0.03603562,105580.0,105570.0,1.16074354]
[1749381571547,0.03603562,105580.0,105570.0,1.16735018]
[1749381571956,0.02656467,105580.0,105570.0,1.16735018]
[1749381572162,0.00762304,105580.0,105570.0,1.16735011]
[1749381572371,0.00762304,105580.0,105570.0,1.20496188]
[1749381573018,0.00762304,105580.0,105570.0,1.20496098]
[1749381573216,0.00762304,105580.0,105570.0,1.2049611]
[1749381573334,0.00762304,105580.0,105570.0,1.20496112]
[1749381574337,0.00762304,105580.0,105570.0,1.20496174]
[1749381574543,0.00762304,105580.0,105570.0,1.20496171]
[1749381575282,0.00762304,105580.0,105570.0,1.204962]
[1749381575739,0.00762304,105580.0,105570.0,1.20496201]
[1749381575945,0.00762304,105580.0,105570.0,1.20496198]
[1749381576308,0.00762304,105580.0,105570.0,1.2049624]
[1749381576847,0.00712304,105580.0,105570.0,1.20496234]
[1749381577258,0.00712304,105580.0,105570.0,1.19835531]
[1749381577470,0.00712304,105580.0,105570.0,0.83032285]
[1749381577652,0.00712304,105580.0,105570.0,1.20488285]
[1749381577850,0.00712304,105580.0,105570.0,1.20488301]
[1749381578265,0.00712304,105580.0,105570.0,1.20488299]
[1749381578600,0.00712304,105580.0,105570.0,1.19827531]
[1749381578807,0.00712304,105580.0,105570.0,1.20488347]
[1749381579023,0.00712304,105580.0,105570.0,1.20488345]
[1749381579399,0.00712304,105580.0,105570.0,1.20488337]
[1749381579615,0.01659372,105580.0,105570.0,1.20488337]
[1749381580163,0.01659372,105580.0,105570.0,1.19827531]
[1749381580338,0.01659372,105580.0,105570.0,1.20488334]
[1749381580574,0.01659372,105580.0,105570.0,1.20488426]
[1749381581051,0.01659372,105580.0,105570.0,1.19827531]
[1749381581280,0.01659372,105580.0,105570.0,1.20488427]
[1749381581881,0.01659372,105580.0,105570.0,1.20488452]
[1749381583492,0.01659372,105580.0,105570.0,1.19827531]
[1749381583713,0.01659372,105580.0,105570.0,1.20488483]
[1749381583984,0.01659372,105580.0,105570.0,1.19827531]
[1749381584202,0.01659372,105580.0,105570.0,1.20488481]
[1749381584820,0.01659372,105580.0,105570.0,1.20488504]
[1749381585026,0.01659372,105580.0,105570.0,1.20488503]
[1749381585258,0.01659372,105580.0,105570.0,1.19827531]
[1749381586129,0.01659372,105580.0,105570.0,1.20488581]
[1749381586362,0.01659372,105580.0,105570.0,1.20489059]
[1749381586821,0.01659372,105580.0,105570.0,1.19828009]
[1749381587680,0.01659372,105580.0,105570.0,1.20489056]
[1749381587852,0.01659372,105580.0,105570.0,1.20489066]
[1749381588615,0.01659372,105580.0,105570.0,1.20489071]
[1749381588819,0.01659372,105580.0,105570.0,1.2048907]
[1749381589021,0.01659372,105580.0,105570.0,1.20489069]
[1749381589277,0.01659372,105580.0,105570.0,1.20489074]
[1749381589483,0.01659372,105580.0,105570.0,1.20489079]
[1749381590280,0.01659372,105580.0,105570.0,1.2048909]
[1749381590688,0.00712304,105580.0,105570.0,1.20489089]
[1749381590902,0.00712304,105580.0,105570.0,1.20489087]
[1749381591108,0.00712304,105580.0,105570.0,1.20489089]
[1749381591315,0.01659372,105580.0,105570.0,1.20489089]
[1749381591929,0.00712304,105580.0,105570.0,1.20489089]
[1749381592339,0.00712304,105580.0,105570.0,1.20489099]
[1749381592485,0.00712304,105580.0,105570.0,1.19828009]
[1749381592682,0.00712304,105580.0,105570.0,1.20489131]
[1749381593782,0.01659372,105580.0,105570.0,1.20489131]
[1749381594269,0.01659372,105580.0,105570.0,1.19828009]
[1749381594449,0.01659372,105580.0,105570.0,1.20489148]
[1749381594658,0.01659372,105580.0,105570.0,1.19828009]
[1749381594834,0.00712304,105580.0,105570.0,1.20489144]
[1749381595857,0.00712304,105580.0,105570.0,1.19828009]
[1749381596259,0.00712304,105580.0,105570.0,1.20489192]
[1749381596461,0.00712304,105580.0,105570.0,1.20489193]
[1749381596670,0.00712304,105580.0,105570.0,1.2048919]
[1749381597583,0.00712304,105580.0,105570.0,1.20489202]
[1749381597788,0.00712304,105580.0,105570.0,1.19828009]
[1749381598012,0.00712304,105580.0,105570.0,1.20489197]
[1749381598799,0.00712304,105580.0,105570.0,1.19828009]
[1749381599002,0.00712304,105580.0,105570.0,1.20489211]
[1749381599433,0.00712304,105580.0,105570.0,1.19828009]
[1749381599809,0.00712304,105580.0,105570.0,1.20489209]
[1749381600137,0.00712304,105580.0,105570.0,1.20489314]
[1749381600693,0.00712304,105580.0,105570.0,1.19828009]
[1749381600899,0.01659372,105580.0,105570.0,1.17669213]
[1749381601292,0.00712304,105580.0,105570.0,1.17007917]
[1749381601495,0.00712304,105580.0,105570.0,1.17669218]
[1749381601927,0.00712304,105580.0,105570.0,1.17007917]
[1749381602142,0.00712304,105580.0,105570.0,1.17669216]
[1749381603289,0.00712304,105580.0,105570.0,1.17669295]
[1749381603522,0.00712304,105580.0,105570.0,1.23304817]
[1749381603748,0.00712304,105580.0,105570.0,1.17007917]
[1749381603963,0.00712304,105580.0,105570.0,1.17669299]
[1749381604170,0.00712304,105580.0,105570.0,1.17669302]
[1749381604476,0.00712304,105580.0,105570.0,1.17669314]
[1749381604758,0.00712304,105580.0,105570.0,1.17007917]
[1749381605115,0.00712304,105580.0,105570.0,1.17669312]
[1749381605323,0.00712304,105580.0,105570.0,1.17669313]
[1749381605538,0.00712304,105580.0,105570.0,1.17669314]
[1749381605742,0.00712304,105580.0,105570.0,1.17669316]
[1749381606887,0.00712304,105580.0,105570.0,1.17669321]
[1749381607401,0.00712304,105580.0,105570.0,1.17669327]
[1749381607624,0.00712304,105580.0,105570.0,1.17007917]
[1749381607741,0.00712304,105580.0,105570.0,1.17669326]
[1749381608611,0.00712304,105580.0,105570.0,1.17007917]
[1749381608836,0.00712304,105580.0,105570.0,1.17669318]
[1749381609014,0.00712304,105580.0,105570.0,1.23304839]
[1749381609224,0.00712304,105580.0,105570.0,1.17669318]
[1749381609555,0.00712304,105580.0,105570.0,1.17007917]
[1749381609765,0.00712304,105580.0,105570.0,1.17669318]
[1749381609960,0.00712304,105580.0,105570.0,1.17669321]
[1749381610402,0.00712304,105580.0,105570.0,1.17669324]
[1749381610859,0.00712304,105580.0,105570.0,1.17007917]
[1749381611025,0.01659381,105580.0,105570.0,1.17669323]
[1749381612081,0.01659381,105580.0,105570.0,1.17007917]
[1749381612290,0.01659381,105580.0,105570.0,1.17669324]
[1749381612465,0.01659381,105580.0,105570.0,1.17669326]
[1749381612662,0.01659381,105580.0,105570.0,1.17007917]
[1749381612885,0.01659381,105580.0,105570.0,1.17669326]
[1749381613464,0.01659381,105580.0,105570.0,1.17669325]
[1749381613838,0.01659381,105580.0,105570.0,1.17669332]
[1749381614248,0.01659381,105580.0,105570.0,1.17007917]
[1749381614455,0.02606476,105580.0,105570.0,0.80213333]
[1749381614637,0.02606476,105580.0,105570.0,1.17665333]
[1749381615189,0.02606476,105580.0,105570.0,0.88953333]
[1749381615400,0.0355358,105580.0,105570.0,1.17665333]
[1749381615596,0.24390832,105580.0,105570.0,1.18878849]
[1749381615796,0.05447833,105580.0,105570.0,1.20487461]
[1749381616061,0.05447833,105580.0,105570.0,1.20487463]
[1749381616264,0.05447833,105580.0,105570.0,1.20487464]
[1749381616549,0.24390814,105580.0,105570.0,0.77075297]
[1749381616749,0.23443791,105580.0,105570.0,1.1558315]
[1749381617109,0.23443791,105580.0,105570.0,1.15583176]
[1749381617317,0.23443791,105580.0,105570.0,1.1492171]
[1749381617763,0.23443791,105580.0,105570.0,1.17233176]
[1749381618187,0.23443791,105580.0,105570.0,1.1657171]
[1749381618385,0.22496687,105580.0,105570.0,1.17233176]
[1749381618928,0.22496687,105580.0,105570.0,1.17233185]
[1749381619131,0.03553706,105580.0,105570.0,1.17518894]
[1749381619348,0.03553706,105580.0,105570.0,1.18180263]
[1749381619770,0.03553706,105580.0,105570.0,1.19820256]
[1749381619975,0.02606557,105580.0,105570.0,1.19158894]
[1749381620181,0.02606557,105580.0,105570.0,0.82368256]
[1749381620473,0.02606557,105580.0,105570.0,1.19820256]
[1749381621255,0.02606557,105580.0,105570.0,1.19820215]
[1749381621939,0.02606521,105580.0,105570.0,1.19820206]
[1749381622140,0.03553652,105580.0,105570.0,1.19820206]
[1749381622483,0.04500792,105580.0,105570.0,1.19820206]
[1749381623042,0.04500792,105580.0,105570.0,1.19158894]
[1749381623574,0.02606467,105580.0,105570.0,1.19820209]
[1749381623782,0.03553589,105580.0,105570.0,1.19820209]
[1749381623984,0.0355358,105580.0,105570.0,1.19820199]
[1749381624490,0.0355358,105580.0,105570.0,1.19820173]
[1749381624666,0.02606467,105580.0,105570.0,1.19820173]
[1749381624899,0.02606467,105580.0,105570.0,1.19158894]
[1749381625113,0.02606467,105580.0,105570.0,1.19820173]
[1749381625314,0.02606467,105580.0,105570.0,1.19158894]
[1749381625545,0.03553571,105580.0,105570.0,1.19158894]
[1749381625744,0.04500684,105580.0,105570.0,1.19820173]
[1749381625883,0.02606467,105580.0,105570.0,1.19820173]
[1749381626295,0.03553571,105580.0,105570.0,1.19820159]
[1749381626707,0.03553571,105580.0,105570.0,1.19820161]
[1749381626902,0.03553571,105580.0,105570.0,1.19158894]
[1749381627119,0.03553571,105580.0,105570.0,1.19820152]
[1749381627530,0.02606467,105580.0,105570.0,1.19820152]
[1749381627945,0.02606467,105580.0,105570.0,1.19158894]
[1749381628199,0.02606467,105580.0,105570.0,1.19820146]
[1749381628451,0.02606467,105580.0,105570.0,1.19158894]
[1749381629066,0.02606467,105580.0,105570.0,1.19820156]
[1749381629836,0.0355358,105580.0,105570.0,1.1982016]
[1749381630236,0.0355358,105580.0,105570.0,1.19158894]
[1749381630603,0.02606467,105580.0,105570.0,1.1982016]
[1749381630812,0.0355358,105580.0,105570.0,1.1982016]
[1749381631137,0.02606467,105580.0,105570.0,1.1982016]
[1749381631546,0.03553571,105580.0,105570.0,1.1982016]
[1749381631896,0.03553571,105580.0,105570.0,1.19158894]
[1749381632467,0.03553571,105580.0,105570.0,1.19820173]
[1749381632744,0.02606467,105580.0,105570.0,1.19820173]
[1749381633770,0.0355358,105580.0,105570.0,1.19820173]
[1749381633971,0.02606467,105580.0,105570.0,1.19820173]
[1749381634910,0.02606467,105580.0,105570.0,1.19158894]
[1749381635133,0.02606467,105580.0,105570.0,1.1982018]
[1749381635625,0.02606467,105580.0,105570.0,1.19820182]
[1749381635843,0.02606467,105580.0,105570.0,1.19158894]
[1749381636049,0.02606467,105580.0,105570.0,1.19820183]
[1749381636371,0.02606467,105580.0,105570.0,1.19820198]
[1749381636856,0.02606467,105580.0,105570.0,1.19820203]
[1749381637075,0.02606467,105580.0,105570.0,1.19820227]
[1749381637418,0.00712304,105580.0,105570.0,1.19820226]
[1749381637627,0.00712304,105580.0,105570.0,1.19820195]
[1749381638040,0.00712304,105580.0,105570.0,1.16998088]
[1749381638246,0.00712304,105580.0,105570.0,1.22633609]
[1749381638860,0.00712304,105580.0,105570.0,1.21972308]
[1749381639065,0.00712304,105580.0,105570.0,1.22633562]
[1749381639332,0.00712304,105580.0,105570.0,1.21972308]
[1749381639484,0.00712304,105580.0,105570.0,1.22633571]
[1749381639685,0.00712304,105580.0,105570.0,1.1699805]
[1749381640243,0.00712304,105580.0,105570.0,1.16997993]
[1749381640573,0.00712304,105580.0,105570.0,1.16336787]
[1749381640981,0.00712304,105580.0,105570.0,1.16998005]
[1749381641182,0.00712304,105580.0,105570.0,1.16998004]
[1749381642416,0.00712304,105580.0,105570.0,1.16336787]
[1749381642907,0.00712304,105580.0,105570.0,1.16997959]
[1749381644193,0.00712304,105580.0,105570.0,1.16997926]
[1749381644461,0.00712304,105580.0,105570.0,1.16336787]
[1749381644679,0.00712304,105580.0,105570.0,1.16997926]
[1749381644885,0.00712304,105580.0,105570.0,1.16336787]
[1749381645106,0.00712304,105580.0,105570.0,1.16997926]
[1749381645697,0.00712304,105580.0,105570.0,1.16336787]
[1749381646059,0.00712304,105580.0,105570.0,1.1699792]
[1749381646277,0.00712304,105580.0,105570.0,1.16336787]
[1749381646893,0.00712304,105580.0,105570.0,1.16997917]
[1749381647093,0.00712304,105580.0,105570.0,1.16336787]
[1749381647302,0.00712304,105580.0,105570.0,1.16997925]
[1749381647607,0.00712304,105580.0,105570.0,1.16997926]
[1749381647825,0.00712304,105580.0,105570.0,1.16997933]
[1749381648061,0.00712304,105580.0,105570.0,1.16336787]
[1749381648297,0.00712304,105580.0,105570.0,1.16997935]
[1749381648531,0.00712304,105580.0,105570.0,1.16336787]
[1749381648756,0.00712304,105580.0,105570.0,1.16997916]
[1749381649761,0.00712304,105580.0,105570.0,1.16997917]
[1749381649986,0.00712304,105580.0,105570.0,1.16336787]
[1749381650207,0.00712304,105580.0,105570.0,1.16997917]
[1749381650428,0.00712304,105580.0,105570.0,1.16336787]
[1749381650646,0.00712304,105580.0,105570.0,1.16997919]
[1749381651763,0.00712304,105580.0,105570.0,1.16997974]
[1749381652112,0.00712304,105580.0,105570.0,1.16336787]
[1749381652321,0.00712304,105580.0,105570.0,1.16997974]
[1749381652748,0.00712304,105580.0,105570.0,1.16336787]
[1749381653213,0.00712304,105580.0,105570.0,1.16997975]
[1749381653373,0.00712304,105580.0,105570.0,1.16336787]
[1749381653788,0.00712304,105580.0,105570.0,1.16997989]
[1749381654002,0.00712304,105580.0,105570.0,1.1699801]
[1749381654203,0.00712304,105580.0,105570.0,1.16998005]
[1749381654559,0.00712304,105580.0,105570.0,1.16998007]
[1749381654945,0.00712304,105580.0,105570.0,1.16336787]
[1749381655350,0.00712304,105580.0,105570.0,1.16998007]
[1749381656806,0.00712304,105580.0,105570.0,1.16998168]
[1749381657013,0.00712304,105580.0,105570.0,1.16336787]
[1749381657239,0.00712304,105580.0,105570.0,1.16998168]
[1749381657486,0.00712304,105580.0,105570.0,1.16998177]
[1749381657732,0.00712304,105580.0,105570.0,1.16998174]
[1749381657935,0.00712304,105580.0,105570.0,1.16998178]
[1749381658108,0.00712304,105580.0,105570.0,1.16998181]
[1749381658820,0.00712304,105580.0,105570.0,1.16998173]
[1749381659129,0.00712304,105580.0,105570.0,1.16998174]
[1749381659254,0.00712304,105580.0,105570.0,1.16336787]
[1749381659457,0.00712304,105580.0,105570.0,1.19820416]
[1749381659699,0.00712304,105580.0,105570.0,1.19820467]
[1749381660087,0.00712304,105580.0,105570.0,1.16998224]
[1749381660290,0.00712304,105580.0,105570.0,1.1982047]
[1749381660495,0.00712304,105580.0,105570.0,1.1982048]
[1749381660914,0.00712304,105580.0,105570.0,1.19820481]
[1749381661329,0.00712304,105580.0,105570.0,1.1699823]
[1749381661531,0.01659372,105580.0,105570.0,1.1699823]
[1749381661738,0.00712304,105580.0,105570.0,1.16998281]
[1749381661941,0.01659372,105580.0,105570.0,1.16998281]
[1749381662225,0.00712304,105580.0,105570.0,1.16998281]
[1749381662441,0.01659372,105580.0,105570.0,1.16998281]
[1749381662870,0.04500684,105580.0,105570.0,0.77651904]
[1749381663049,0.04500684,105580.0,105570.0,0.82368765]
[1749381663248,0.05447815,105580.0,105570.0,1.19808765]
[1749381663520,0.05447815,105580.0,105570.0,1.2075594]
[1749381663845,0.05447815,105580.0,105570.0,1.20755987]
[1749381664235,0.05447815,105580.0,105570.0,1.20094446]
[1749381664447,0.05447815,105580.0,105570.0,1.20755989]
[1749381664646,0.04500675,105580.0,105570.0,1.2075603]
[1749381664773,0.05447806,105580.0,105570.0,1.20094446]
[1749381664992,0.03553553,105580.0,105570.0,1.2075603]
[1749381665195,0.04500684,105580.0,105570.0,1.2075603]
[1749381665660,0.04500684,105580.0,105570.0,1.20756004]
[1749381666065,0.04500684,105580.0,105570.0,1.20094446]
[1749381666066,0.04500675,105580.0,105570.0,1.20094446]
[1749381666292,0.04500675,105580.0,105570.0,1.20756015]
[1749381667135,0.04500675,105580.0,105570.0,1.20756088]
[1749381667772,0.03553544,105580.0,105570.0,1.20756088]
[1749381668183,0.04500657,105580.0,105570.0,1.20756088]
[1749381668347,0.03553544,105580.0,105570.0,1.20756088]
[1749381668994,0.02606458,105580.0,105570.0,1.20756088]
[1749381669207,0.02606449,105580.0,105570.0,1.20756185]
[1749381669429,0.02606449,105580.0,105570.0,1.20094446]
[1749381669677,0.02606449,105580.0,105570.0,1.20756172]
[1749381669873,0.02606449,105580.0,105570.0,1.20094446]
[1749381670113,0.02606449,105580.0,105570.0,1.20756178]
[1749381670798,0.02606449,105580.0,105570.0,1.20094446]
[1749381671277,0.02606449,105580.0,105570.0,1.20756153]
[1749381671494,0.02606449,105580.0,105570.0,1.20094446]
[1749381671934,0.02606449,105580.0,105570.0,1.20756166]
[1749381672161,0.02606449,105580.0,105570.0,1.20094446]
[1749381672385,0.00712304,105580.0,105570.0,1.20756172]
[1749381672628,0.00712304,105580.0,105570.0,1.20756173]
[1749381672842,0.00712304,105580.0,105570.0,1.17271962]
[1749381673291,0.00712304,105580.0,105570.0,1.17933639]
[1749381674210,0.00712304,105580.0,105570.0,1.17978839]
[1749381674459,0.00712304,105580.0,105570.0,1.17317162]
[1749381674934,0.00712304,105580.0,105570.0,1.17978856]
[1749381676381,0.00712304,105580.0,105570.0,1.17978857]
[1749381677001,0.00712304,105580.0,105570.0,1.17978868]
[1749381678028,0.00712304,105580.0,105570.0,1.17978875]
[1749381678255,0.00712304,105580.0,105570.0,1.17317162]
[1749381678735,0.00712304,105580.0,105570.0,1.17978877]
[1749381678944,0.00712304,105580.0,105570.0,1.17317162]
[1749381679160,0.00712304,105580.0,105570.0,1.17978875]
[1749381679986,0.00712304,105580.0,105570.0,1.1797887]
[1749381680184,0.00712304,105580.0,105570.0,1.17978858]
[1749381680384,0.00712304,105580.0,105570.0,1.17317162]
[1749381680587,0.00712304,105580.0,105570.0,1.17978851]
[1749381680793,0.00712304,105580.0,105570.0,1.17978852]
[1749381681637,0.00712304,105580.0,105570.0,1.17978868]
[1749381682115,0.00712304,105580.0,105570.0,1.17978866]
[1749381682318,0.00712304,105580.0,105570.0,1.17317162]
[1749381682595,0.00712304,105580.0,105570.0,1.17978868]
[1749381683035,0.00712304,105580.0,105570.0,1.17978869]
[1749381683694,0.00712304,105580.0,105570.0,1.17978877]
[1749381684072,0.00712304,105580.0,105570.0,1.17978882]
[1749381684279,0.00712304,105580.0,105570.0,1.17317162]
[1749381684484,0.00712304,105580.0,105570.0,1.17978882]
[1749381685186,0.00712304,105580.0,105570.0,1.17317162]
[1749381685393,0.00712304,105580.0,105570.0,1.17978892]
[1749381685597,0.00712304,105580.0,105570.0,1.17317162]
[1749381686005,0.00712304,105580.0,105570.0,1.17978888]
[1749381687212,0.00712304,105580.0,105570.0,1.17978899]
[1749381687415,0.00712304,105580.0,105570.0,1.179789]
[1749381687623,0.00712304,105580.0,105570.0,1.17978901]
[1749381687870,0.00712304,105580.0,105570.0,1.17317162]
[1749381688024,0.00712304,105580.0,105570.0,1.17978898]
[1749381688882,0.00712304,105580.0,105570.0,1.17317162]
[1749381689056,0.00712304,105580.0,105570.0,1.17978905]
[1749381689266,0.00712304,105580.0,105570.0,1.17978938]
[1749381689474,0.00712304,105580.0,105570.0,1.17978939]
[1749381689654,0.00712304,105580.0,105570.0,1.17978923]
[1749381690695,0.00712304,105580.0,105570.0,1.17317162]
[1749381691100,0.00712304,105580.0,105570.0,1.17978945]
[1749381691303,0.00712304,105580.0,105570.0,1.17317162]
[1749381691470,0.00712304,105580.0,105570.0,1.17978937]
[1749381692026,0.00712304,105580.0,105570.0,0.88613162]
[1749381692163,0.00712304,105580.0,105570.0,1.17978936]
[1749381692364,0.00712304,105580.0,105570.0,1.17317162]
[1749381692563,0.00712304,105580.0,105570.0,1.17978938]